bitfinex/quotes_BTCUSD_20250910
["timestamp","ask_amount","ask_price","bid_price","bid_amount"]
[1757525323267,1.3330957,113560.0,113550.0,1e-08]
[1757525323988,1.3830957,113560.0,113550.0,1e-08]
[1757525324432,0.50680162,113550.0,113540.0,1e-08]
[1757525324641,0.82508641,113550.0,113540.0,1e-08]
[1757525324869,0.83025641,113550.0,113540.0,1e-08]
[1757525325116,0.67361641,113550.0,113540.0,1e-08]
[1757525325343,0.84858999,113550.0,113540.0,1e-08]
[1757525325584,0.6683194,113550.0,113540.0,1e-08]
[1757525325798,0.82208999,113550.0,113540.0,1e-08]
[1757525326032,0.82408999,113550.0,113540.0,1e-08]
[1757525326290,0.52161881,113550.0,113540.0,1e-08]
[1757525326513,0.83282408,113550.0,113540.0,1e-08]
[1757525326744,0.85168999,113550.0,113540.0,1e-08]
[1757525328180,0.69496999,113550.0,113540.0,1e-08]
[1757525328395,0.85172999,113550.0,113540.0,1e-08]
[1757525328626,0.38942881,113550.0,113540.0,1e-08]
[1757525328872,0.83282408,113550.0,113540.0,1e-08]
[1757525329097,0.85168999,113550.0,113540.0,1e-08]
[1757525329323,0.69496999,113550.0,113540.0,1e-08]
[1757525329547,0.85164999,113550.0,113540.0,1e-08]
[1757525329771,0.69496999,113550.0,113540.0,1e-08]
[1757525329992,0.54606881,113550.0,113540.0,1e-08]
[1757525330215,0.85168999,113550.0,113540.0,1e-08]
[1757525330657,0.69496999,113550.0,113540.0,1e-08]
[1757525330904,0.85172999,113550.0,113540.0,1e-08]
[1757525331124,0.85160999,113550.0,113540.0,1e-08]
[1757525331590,0.85164999,113550.0,113540.0,1e-08]
[1757525333312,0.54610881,113550.0,113540.0,1e-08]
[1757525333521,0.85160999,113550.0,113540.0,1e-08]
[1757525334194,0.82907271,113550.0,113540.0,1e-08]
[1757525334410,0.85151756,113550.0,113540.0,1e-08]
[1757525335530,0.3345098,113550.0,113540.0,0.00533001]
[1757525335761,0.28920223,113550.0,113540.0,0.02947001]
[1757525335975,0.43956091,113550.0,113540.0,0.02947001]
[1757525336192,0.5923315,113550.0,113540.0,0.02947001]
[1757525336404,0.5923315,113550.0,113540.0,0.00533001]
[1757525336836,0.43956091,113550.0,113540.0,0.00533001]
[1757525337064,0.19555739,113550.0,113540.0,0.02947001]
[1757525337269,0.35215739,113550.0,113540.0,0.02947001]
[1757525337958,0.35215739,113550.0,113540.0,0.03167187]
[1757525338407,0.0031,113550.0,113540.0,0.22861481]
[1757525338626,0.0031,113550.0,113540.0,0.67041647]
[1757525338841,0.0031,113550.0,113540.0,0.51393647]
[1757525339055,0.0031,113550.0,113540.0,0.67049647]
[1757525339298,0.0001,113550.0,113540.0,0.67049647]
[1757525339520,0.0001,113550.0,113540.0,0.4516629]
[1757525339967,0.0001,113550.0,113540.0,0.4496629]
[1757525340187,0.0001,113550.0,113540.0,0.4526629]
[1757525340414,0.0001,113550.0,113540.0,0.7861429]
[1757525340844,0.0001,113550.0,113540.0,0.9426229]
[1757525341065,0.0001,113550.0,113540.0,1.03115408]
[1757525341278,0.0001,113550.0,113540.0,1.43115408]
[1757525341735,0.0001,113550.0,113540.0,1.27367408]
[1757525341948,0.0001,113550.0,113540.0,1.3425829]
[1757525342163,0.0001,113550.0,113540.0,1.3445829]
[1757525342635,0.0001,113550.0,113540.0,1.5445829]
[1757525342847,0.0001,113550.0,113540.0,1.1445829]
[1757525343072,0.0001,113550.0,113540.0,1.1448229]
[1757525343290,0.0001,113550.0,113540.0,1.05675028]
[1757525343501,0.0001,113550.0,113540.0,1.21339028]
[1757525343738,0.0001,113550.0,113540.0,1.1447829]
[1757525344462,0.17623386,113550.0,113540.0,0.03447001]
[1757525344680,0.17623386,113550.0,113540.0,0.19103001]
[1757525345343,0.32900445,113550.0,113540.0,0.00833001]
[1757525345573,0.32900445,113550.0,113540.0,0.00933001]
[1757525345817,0.17623386,113550.0,113540.0,0.00933001]
[1757525346041,0.17623386,113550.0,113540.0,0.00633001]
[1757525346513,0.17623386,113550.0,113540.0,0.03247001]
[1757525347392,0.17623386,113550.0,113540.0,0.03467187]
[1757525348040,0.17623386,113550.0,113540.0,0.03247001]
[1757525349336,0.17623386,113550.0,113540.0,0.00833001]
[1757525350690,0.50363271,113550.0,113540.0,0.00633001]
[1757525350973,0.50143481,113550.0,113540.0,0.00633001]
[1757525351182,0.50143481,113550.0,113540.0,0.00533001]
[1757525351183,0.26375738,113550.0,113540.0,0.00533001]
[1757525351395,0.26375738,113550.0,113540.0,0.00633001]
[1757525353527,0.26375738,113550.0,113540.0,0.00853187]
[1757525353741,0.26375738,113550.0,113540.0,0.00535187]
[1757525353953,0.26375738,113550.0,113540.0,0.00633001]
[1757525354592,0.26375738,113550.0,113540.0,0.00853187]
[1757525355937,0.50143481,113550.0,113540.0,0.00853187]
[1757525356355,0.50143481,113550.0,113540.0,0.00633001]
[1757525356818,0.50351481,113550.0,113540.0,0.00100001]
[1757525357269,0.91148865,113550.0,113540.0,0.00100001]
[1757525357730,0.91148865,113550.0,113540.0,1e-08]
[1757525358185,0.67481122,113550.0,113540.0,1e-08]
[1757525358429,0.67681122,113550.0,113540.0,1e-08]
[1757525358662,0.7551434,113550.0,113540.0,1e-08]
[1757525358929,0.77398823,113550.0,113540.0,1e-08]
[1757525359416,1.01166566,113550.0,113540.0,1e-08]
[1757525359631,0.77398823,113550.0,113540.0,1e-08]
[1757525359847,1.01166566,113550.0,113540.0,1e-08]
[1757525360274,0.77398823,113550.0,113540.0,1e-08]
[1757525360493,1.01166566,113550.0,113540.0,1e-08]
[1757525360706,0.77398823,113550.0,113540.0,1e-08]
[1757525361154,1.01166566,113550.0,113540.0,1e-08]
[1757525361402,1.17186566,113550.0,113540.0,1e-08]
[1757525362756,0.83861201,113550.0,113540.0,1e-08]
[1757525363000,1.23720944,113550.0,113540.0,1e-08]
[1757525363876,0.99953201,113550.0,113540.0,1e-08]
[1757525364094,1.23720944,113550.0,113540.0,1e-08]
[1757525364974,0.99953201,113550.0,113540.0,1e-08]
[1757525365162,1.23720944,113550.0,113540.0,1e-08]
[1757525365838,0.99953201,113550.0,113540.0,1e-08]
[1757525366063,1.23720944,113550.0,113540.0,1e-08]
[1757525367815,0.99953201,113550.0,113540.0,1e-08]
[1757525368034,1.23720944,113550.0,113540.0,1e-08]
[1757525368959,1.23413944,113550.0,113540.0,1e-08]
[1757525369175,1.23706944,113550.0,113540.0,1e-08]
[1757525369609,0.99939201,113550.0,113540.0,1e-08]
[1757525369821,1.23706944,113550.0,113540.0,1e-08]
[1757525370174,0.99939201,113550.0,113540.0,1e-08]
[1757525370379,1.21822461,113550.0,113540.0,1e-08]
[1757525371532,1.23707565,113550.0,113540.0,1e-08]
[1757525371955,1.23707565,113550.0,113520.0,1e-08]
[1757525372160,0.73904327,113530.0,113520.0,1e-08]
[1757525372373,0.68521785,113530.0,113520.0,1e-08]
[1757525372579,0.68729785,113530.0,113520.0,1e-08]
[1757525372795,0.71345785,113530.0,113520.0,1e-08]
[1757525373012,0.47588042,113530.0,113520.0,1e-08]
[1757525373235,1.07868443,113530.0,113520.0,1e-08]
[1757525373420,1.33521055,113530.0,113520.0,1e-08]
[1757525373863,1.33529055,113530.0,113520.0,1e-08]
[1757525374069,1.33929055,113530.0,113520.0,1e-08]
[1757525375384,1.34819304,113530.0,113520.0,1e-08]
[1757525375833,1.18675304,113530.0,113520.0,1e-08]
[1757525376051,1.34855304,113530.0,113520.0,1e-08]
[1757525377832,1.18675304,113530.0,113520.0,1e-08]
[1757525378060,1.06570692,113530.0,113520.0,1e-08]
[1757525378294,1.06863692,113530.0,113520.0,1e-08]
[1757525378536,1.3483838,113530.0,113520.0,1e-08]
[1757525378759,0.94906637,113530.0,113520.0,1e-08]
[1757525379205,1.08458637,113530.0,113520.0,1e-08]
[1757525379435,1.11074637,113530.0,113520.0,1e-08]
[1757525379869,1.11070637,113530.0,113520.0,1e-08]
[1757525380115,1.11062637,113530.0,113520.0,1e-08]
[1757525381498,0.92583637,113530.0,113520.0,1e-08]
[1757525381702,0.92290637,113530.0,113520.0,1e-08]
[1757525381940,0.56406692,113530.0,113520.0,1e-08]
[1757525382148,1.06534692,113530.0,113520.0,0.00500001]
[1757525382397,0.48766949,113530.0,113520.0,0.00500001]
[1757525382614,0.56406692,113530.0,113520.0,0.00500001]
[1757525382848,1.06530692,113530.0,113520.0,0.00500001]
[1757525383500,0.82762949,113530.0,113520.0,0.00500001]
[1757525383719,1.06330692,113530.0,113520.0,0.00207001]
[1757525383934,0.82338949,113530.0,113520.0,0.00500001]
[1757525384171,0.17619592,113510.0,113500.0,0.53062373]
[1757525384405,0.19255318,113510.0,113500.0,0.53062373]
[1757525384626,0.19255318,113510.0,113500.0,0.70890518]
[1757525384842,0.17619592,113510.0,113500.0,0.53269373]
[1757525385072,0.17619592,113510.0,113500.0,0.70890518]
[1757525385289,0.17629592,113510.0,113500.0,0.70890518]
[1757525385529,0.17676303,113510.0,113500.0,0.70890518]
[1757525385749,0.17676303,113510.0,113500.0,0.71090518]
[1757525385969,0.17676303,113510.0,113500.0,0.71190518]
[1757525386189,0.17676303,113510.0,113500.0,0.53862373]
[1757525386626,0.43083316,113510.0,113500.0,0.51275373]
[1757525387297,0.54849326,113510.0,113500.0,0.51068373]
[1757525388000,0.89464193,113510.0,113500.0,0.50768373]
[1757525388233,0.54133803,113500.0,113490.0,0.14447011]
[1757525388454,0.5162425,113480.0,113470.0,0.27739725]
[1757525388671,0.78706666,113480.0,113470.0,0.27946725]
[1757525388900,0.88911067,113480.0,113470.0,0.27946725]
[1757525389131,0.44091872,113480.0,113470.0,0.28239725]
[1757525389361,0.68077615,113480.0,113470.0,0.27946725]
[1757525389589,0.67869615,113480.0,113470.0,0.27946725]
[1757525390061,0.3534952,113480.0,113470.0,0.27946725]
[1757525390305,0.1927352,113480.0,113470.0,0.30533725]
[1757525390969,0.1937352,113480.0,113470.0,0.30533725]
[1757525391201,0.1927352,113480.0,113470.0,0.30533725]
[1757525391682,0.1927352,113480.0,113470.0,0.30733725]
[1757525391901,0.1927352,113480.0,113470.0,0.46597725]
[1757525392117,0.1927352,113480.0,113470.0,0.64423529]
[1757525392118,0.1937352,113480.0,113470.0,0.64423529]
[1757525392554,0.1927352,113480.0,113470.0,0.46797725]
[1757525392775,0.1927352,113480.0,113470.0,0.64423529]
[1757525392996,0.1927352,113480.0,113470.0,0.64523529]
[1757525393216,0.0164927,113480.0,113470.0,0.64523529]
[1757525393433,0.0001,113480.0,113470.0,0.64523529]
[1757525393888,0.0001,113480.0,113470.0,0.88275881]
[1757525394330,0.0001,113480.0,113470.0,1.22275881]
[1757525394561,0.0001,113480.0,113470.0,1.06211881]
[1757525394783,0.0001,113480.0,113470.0,1.22247881]
[1757525395000,0.0001,113480.0,113470.0,1.06211881]
[1757525395449,0.0001,113480.0,113470.0,1.22235881]
[1757525396639,0.0001,113480.0,113470.0,1.06211881]
[1757525396872,0.0001,113480.0,113470.0,0.88235881]
[1757525397097,0.1763425,113480.0,113470.0,0.88235881]
[1757525397315,0.1763425,113480.0,113470.0,1.19471529]
[1757525397530,0.1763425,113480.0,113470.0,0.61841725]
[1757525397969,0.1763425,113480.0,113470.0,0.79467529]
[1757525398402,0.0001,113480.0,113470.0,0.79467529]
[1757525398619,0.1763425,113480.0,113470.0,0.61825725]
[1757525399709,0.1763425,113480.0,113470.0,0.79451529]
[1757525401471,0.1763425,113480.0,113470.0,0.64431529]
[1757525402366,0.1763425,113480.0,113470.0,0.30833725]
[1757525402584,0.43238949,113480.0,113470.0,0.28039725]
[1757525402811,0.43561949,113480.0,113470.0,0.44003725]
[1757525403038,0.43561949,113480.0,113470.0,0.28039725]
[1757525403039,0.50673345,113480.0,113470.0,0.28039725]
[1757525403259,0.52314209,113480.0,113470.0,0.28039725]
[1757525403727,0.57324867,113480.0,113470.0,0.28039725]
[1757525403944,0.91940131,113480.0,113470.0,0.28039725]
[1757525404396,0.95110318,113480.0,113470.0,0.28039725]
[1757525404833,0.95110318,113480.0,113470.0,0.27739725]
[1757525405290,1.01900249,113480.0,113470.0,1e-08]
[1757525405507,1.17860249,113480.0,113470.0,1e-08]
[1757525406893,1.01900249,113480.0,113470.0,1e-08]
[1757525407141,1.17856249,113480.0,113470.0,1e-08]
[1757525407375,0.54140015,113460.0,113450.0,1e-08]
[1757525407600,0.95680238,113460.0,113450.0,1e-08]
[1757525407826,1.11842238,113460.0,113450.0,1e-08]
[1757525408091,0.95886238,113460.0,113450.0,1e-08]
[1757525408326,0.35409837,113460.0,113450.0,0.00525001]
[1757525408597,0.19278221,113460.0,113450.0,0.00525001]
[1757525408825,0.35380875,113460.0,113450.0,0.02946001]
[1757525409052,0.35380875,113460.0,113450.0,0.00525001]
[1757525409288,0.19524875,113460.0,113450.0,0.00745362]
[1757525409561,0.19524875,113460.0,113450.0,0.03166362]
[1757525409816,0.19524875,113460.0,113450.0,0.02946001]
[1757525409817,0.33864011,113460.0,113450.0,0.02946001]
[1757525410045,0.35532417,113460.0,113450.0,0.00525001]
[1757525410265,0.19520417,113460.0,113450.0,0.02946001]
[1757525410479,0.507277,113460.0,113450.0,0.00201001]
[1757525410693,0.506277,113460.0,113450.0,0.00201001]
[1757525410911,0.35332417,113460.0,113450.0,0.00401001]
[1757525411187,0.19320417,113460.0,113450.0,0.00601001]
[1757525411403,0.35384417,113460.0,113450.0,0.03346001]
[1757525411615,0.506797,113460.0,113450.0,0.02946001]
[1757525411824,0.74923335,113460.0,113450.0,0.00301001]
[1757525412060,0.77758993,113460.0,113450.0,0.00200001]
[1757525412915,0.47168427,113460.0,113450.0,0.00200001]
[1757525413141,0.77758993,113460.0,113450.0,0.00200001]
[1757525413356,0.31104427,113460.0,113450.0,0.00200001]
[1757525413569,0.6248371,113460.0,113450.0,0.00200001]
[1757525413987,0.6248371,113460.0,113450.0,0.00100001]
[1757525414195,0.6248371,113460.0,113450.0,1e-08]
[1757525414418,0.6249171,113460.0,113450.0,1e-08]
[1757525414639,0.6196471,113460.0,113450.0,0.00201001]
[1757525414858,0.46669427,113460.0,113450.0,0.00201001]
[1757525415074,0.6196471,113460.0,113450.0,0.00201001]
[1757525415287,0.6216071,113460.0,113450.0,1e-08]
[1757525415499,1.11778993,113460.0,113450.0,1e-08]
[1757525416761,0.84299939,113460.0,113450.0,1e-08]
[1757525416991,1.14890505,113460.0,113450.0,1e-08]
[1757525418564,0.84299939,113460.0,113450.0,1e-08]
[1757525418835,1.14890505,113460.0,113450.0,1e-08]
[1757525419051,0.84299939,113460.0,113450.0,1e-08]
[1757525419269,1.14890505,113460.0,113450.0,1e-08]
[1757525419922,0.64585427,113460.0,113450.0,0.00201001]
[1757525420149,0.9602871,113460.0,113450.0,0.00201001]
[1757525420563,0.78216769,113460.0,113450.0,0.00201001]
[1757525420777,0.78216769,113460.0,113450.0,0.00525001]
[1757525420778,1.02512052,113460.0,113450.0,0.00525001]
[1757525420994,1.02512052,113460.0,113450.0,0.00201001]
[1757525421209,0.71072769,113460.0,113450.0,0.00201001]
[1757525421453,1.02512052,113460.0,113450.0,0.00525001]
[1757525421672,0.28320417,113460.0,113450.0,0.02946001]
[1757525421883,0.44512417,113460.0,113450.0,0.02946001]
[1757525422102,0.35512417,113460.0,113450.0,0.03166362]
[1757525422330,0.19320417,113460.0,113450.0,0.20795273]
[1757525422572,0.19320417,113460.0,113450.0,0.20574912]
[1757525422776,0.17684011,113460.0,113450.0,0.20574912]
[1757525423209,0.00056654,113460.0,113450.0,0.20574912]
[1757525423468,0.00056654,113460.0,113450.0,0.56762912]
[1757525423696,0.00056654,113460.0,113450.0,0.65515264]
[1757525424375,0.00056654,113460.0,113450.0,0.49327264]
[1757525424602,0.00056654,113460.0,113450.0,0.22946001]
[1757525424603,0.17684011,113460.0,113450.0,0.22946001]
[1757525424823,0.17684011,113460.0,113450.0,0.19126001]
[1757525425040,0.17684011,113460.0,113450.0,0.02946001]
[1757525425276,0.17684011,113460.0,113450.0,0.03046001]
[1757525425496,0.32979294,113460.0,113450.0,0.03046001]
[1757525425721,0.17684011,113460.0,113450.0,0.00625001]
[1757525426159,0.17684011,113460.0,113450.0,0.02920001]
[1757525427301,0.17684011,113460.0,113450.0,0.02820001]
[1757525427745,0.17784011,113460.0,113450.0,0.02820001]
[1757525428379,0.17784011,113460.0,113450.0,0.03040362]
[1757525428636,0.17784011,113460.0,113450.0,0.20669273]
[1757525428781,0.17784011,113460.0,113450.0,0.20448912]
[1757525428984,0.00156654,113460.0,113450.0,0.49201264]
[1757525429166,0.00156654,113460.0,113450.0,0.55969264]
[1757525429372,0.00156654,113460.0,113450.0,0.75969264]
[1757525431310,0.00056654,113460.0,113450.0,0.75969264]
[1757525431511,0.00056654,113460.0,113450.0,1.15969264]
[1757525431693,0.00056654,113460.0,113450.0,1.16069264]
[1757525432341,0.00056654,113460.0,113450.0,1.32289264]
[1757525432933,0.00056654,113460.0,113450.0,1.32277264]
[1757525433400,0.00056654,113460.0,113450.0,0.92277264]
[1757525434710,0.00056654,113460.0,113450.0,0.76069264]
[1757525434935,0.00056654,113460.0,113450.0,0.92273264]
[1757525435149,0.00056654,113460.0,113450.0,0.92265264]
[1757525438205,0.00056654,113460.0,113450.0,0.69445263]
[1757525439704,0.00056654,113460.0,113450.0,0.69397263]
[1757525440134,0.00056654,113460.0,113450.0,0.71692263]
[1757525440612,0.00056654,113460.0,113450.0,1.05692263]
[1757525440828,0.00056654,113460.0,113450.0,1.30692263]
[1757525441260,0.00056654,113460.0,113450.0,1.30672263]
[1757525441489,0.00056654,113460.0,113450.0,1.30572263]
[1757525441974,0.00056654,113460.0,113450.0,1.54644263]
[1757525442164,0.00056654,113460.0,113450.0,1.65772263]
[1757525442788,0.00056654,113460.0,113450.0,1.66072263]
[1757525443007,0.00056654,113460.0,113450.0,1.65872263]
[1757525443259,0.00056654,113460.0,113450.0,1.65772263]
[1757525443455,0.00056654,113460.0,113450.0,1.65776263]
[1757525443661,0.00056654,113460.0,113450.0,1.65976263]
[1757525444548,0.00056654,113460.0,113450.0,1.65776263]
[1757525444932,0.00056654,113460.0,113450.0,1.65876263]
[1757525447870,0.00056654,113460.0,113450.0,1.70876263]
[1757525448117,0.00056654,113460.0,113450.0,1.77195225]
[1757525448358,0.00056654,113460.0,113450.0,1.82195225]
[1757525449435,0.00056654,113460.0,113450.0,1.84707883]
[1757525449682,0.00056654,113460.0,113450.0,1.84607883]
[1757525449890,0.00056654,113460.0,113450.0,1.84407883]
[1757525450151,0.00056654,113460.0,113450.0,1.84707883]
[1757525451023,0.00056654,113460.0,113450.0,1.84907883]
[1757525458718,0.00056654,113460.0,113450.0,1.78588921]
[1757525462655,0.00056654,113460.0,113450.0,1.86409679]
[1757525462906,0.00056654,113460.0,113450.0,1.70277679]
[1757525463117,0.00056654,113460.0,113450.0,1.62456921]
[1757525463339,0.00056654,113460.0,113450.0,1.78552921]
[1757525464206,0.00056654,113460.0,113450.0,1.77366384]
[1757525464412,0.00056654,113460.0,113450.0,1.37366384]
[1757525465070,0.00056654,113460.0,113450.0,0.82274384]
[1757525465277,0.00056654,113460.0,113450.0,0.75944263]
[1757525465503,0.00056654,113460.0,113450.0,1.26028263]
[1757525466151,0.00056654,113460.0,113450.0,1.25828263]
[1757525466983,0.00056654,113460.0,113450.0,1.25528263]
[1757525467197,0.00156654,113460.0,113450.0,1.25528263]
[1757525474059,0.00156654,113460.0,113450.0,1.28172922]
[1757525474276,0.00156654,113460.0,113450.0,1.68172922]
[1757525474497,0.00056654,113460.0,113450.0,1.68172922]
[1757525474734,0.00056654,113460.0,113450.0,1.28172922]
[1757525475158,0.00056654,113460.0,113450.0,1.68172922]
[1757525476003,0.00056654,113460.0,113450.0,1.68272922]
[1757525476429,0.00056654,113460.0,113450.0,1.74603043]
[1757525477101,0.00056654,113460.0,113450.0,1.84603043]
[1757525477318,0.00056654,113460.0,113450.0,1.88606338]
[1757525477539,1e-08,113460.0,113450.0,1.88606338]
[1757525477762,0.07061254,113500.0,113490.0,0.52622698]
[1757525477981,0.07061254,113500.0,113490.0,0.68655392]
[1757525478404,0.07061254,113500.0,113490.0,0.71134392]
[1757525478665,0.0001,113500.0,113490.0,0.71130392]
[1757525478921,0.0001,113500.0,113490.0,0.79882744]
[1757525479366,0.0001,113500.0,113490.0,0.80748166]
[1757525479988,0.0011,113500.0,113490.0,0.80748166]
[1757525480642,0.0011,113500.0,113490.0,0.64724166]
[1757525480869,0.0011,113500.0,113490.0,0.80736166]
[1757525481410,0.17731145,113500.0,113490.0,0.64724166]
[1757525481637,0.17731145,113500.0,113490.0,0.80728166]
[1757525482076,0.0011,113500.0,113490.0,0.80728166]
[1757525483888,0.17731145,113500.0,113490.0,0.80728166]
[1757525484127,0.17731145,113500.0,113490.0,0.80740166]
[1757525485479,0.17731145,113500.0,113490.0,0.03349116]
[1757525485699,0.17731145,113500.0,113490.0,0.16024694]
[1757525485921,0.44551235,113500.0,113490.0,4.694e-05]
[1757525486138,0.44331445,113500.0,113490.0,4.694e-05]
[1757525486574,0.31284795,113500.0,113490.0,0.00224977]
[1757525487024,0.31284795,113500.0,113490.0,4.694e-05]
[1757525487458,0.44331445,113500.0,113490.0,4.694e-05]
[1757525489195,0.18238145,113500.0,113490.0,4.694e-05]
[1757525489431,0.47292795,113500.0,113490.0,4.694e-05]
[1757525489667,0.31284795,113500.0,113490.0,4.694e-05]
[1757525490606,0.18238145,113500.0,113490.0,4.694e-05]
[1757525490840,0.31284795,113500.0,113490.0,4.694e-05]
[1757525491319,0.18238145,113500.0,113490.0,4.694e-05]
[1757525491554,0.31284795,113500.0,113490.0,4.694e-05]
[1757525492145,0.18238145,113500.0,113490.0,4.694e-05]
[1757525492368,0.17731145,113500.0,113490.0,4.694e-05]
[1757525492588,0.17950935,113500.0,113490.0,4.694e-05]
[1757525493037,0.30997585,113500.0,113490.0,4.694e-05]
[1757525493250,0.30777795,113500.0,113490.0,4.694e-05]
[1757525493895,0.17731145,113500.0,113490.0,4.694e-05]
[1757525494124,0.17731145,113500.0,113490.0,0.00224977]
[1757525494593,0.17731145,113500.0,113490.0,0.02503977]
[1757525495745,0.17731145,113500.0,113490.0,0.20126675]
[1757525495997,0.17731145,113500.0,113490.0,0.19906392]
[1757525496200,0.17731145,113500.0,113490.0,0.39906392]
[1757525496417,0.17731145,113500.0,113490.0,0.22283694]
[1757525496628,0.17731145,113500.0,113490.0,0.39906392]
[1757525497069,0.0011,113500.0,113490.0,0.48658744]
[1757525497761,0.0011,113500.0,113490.0,0.55422744]
[1757525499333,0.0011,113500.0,113490.0,0.70422744]
[1757525499975,0.0011,113500.0,113490.0,1.04422744]
[1757525501291,0.0011,113500.0,113490.0,1.04522744]
[1757525501736,0.0001,113500.0,113490.0,1.04422744]
[1757525501951,0.0001,113500.0,113490.0,1.20406744]
[1757525502235,0.0001,113500.0,113490.0,1.23050369]
[1757525502457,0.0001,113500.0,113490.0,1.07166369]
[1757525502888,0.0001,113500.0,113490.0,1.63038369]
[1757525503546,0.0001,113500.0,113490.0,1.47166369]
[1757525503752,0.0001,113500.0,113490.0,1.63050369]
[1757525504161,0.0001,113500.0,113490.0,1.47166369]
[1757525504377,0.0001,113500.0,113490.0,1.63050369]
[1757525504836,0.0001,113500.0,113490.0,1.63046369]
[1757525510201,0.0001,113500.0,113490.0,1.74374072]
[1757525510409,0.0001,113500.0,113490.0,1.79374072]
[1757525510828,0.0001,113500.0,113490.0,1.79274072]
[1757525511034,0.0001,113500.0,113490.0,1.79374072]
[1757525511899,0.0001,113500.0,113490.0,1.79330072]
[1757525512553,0.0001,113500.0,113490.0,1.79530072]
[1757525516085,0.0001,113500.0,113490.0,1.74562072]
[1757525516302,0.0001,113500.0,113490.0,1.79562072]
[1757525524429,0.0001,113500.0,113490.0,1.79522072]
[1757525525554,0.17631145,113500.0,113490.0,1.36071374]
[1757525525767,0.17631145,113500.0,113490.0,0.66558744]
[1757525526198,0.0001,113500.0,113490.0,0.66558744]
[1757525526663,0.0001,113500.0,113490.0,0.66458744]
[1757525527790,0.0001,113500.0,113490.0,0.66258744]
[1757525528031,0.0001,113500.0,113490.0,1.00258744]
[1757525528503,0.0001,113500.0,113490.0,1.06586447]
[1757525529241,0.0001,113500.0,113490.0,1.11586447]
[1757525529704,0.0001,113500.0,113490.0,1.51686447]
[1757525530159,0.0001,113500.0,113490.0,1.46086447]
[1757525530439,0.0001,113500.0,113490.0,1.51386447]
[1757525530955,0.0001,113500.0,113490.0,1.45058744]
[1757525534034,0.0001,113500.0,113490.0,1.47702257]
[1757525534275,0.0001,113500.0,113490.0,0.91866257]
[1757525534495,0.0001,113500.0,113490.0,1.34076715]
[1757525534712,0.0001,113500.0,113490.0,1.26433202]
[1757525535379,0.17631145,113500.0,113490.0,1.08769508]
[1757525535631,0.371874,113500.0,113490.0,1.24645508]
[1757525535854,0.0001,113500.0,113490.0,1.24645508]
[1757525536286,0.0001,113500.0,113490.0,1.26992508]
[1757525536722,0.0001,113500.0,113490.0,1.24641508]
[1757525537016,0.0001,113500.0,113490.0,1.1831105]
[1757525537821,0.0001,113500.0,113490.0,1.1811105]
[1757525538446,0.0001,113500.0,113490.0,1.1801105]
[1757525538635,0.17631145,113500.0,113490.0,1.0213905]
[1757525538839,0.17631145,113500.0,113490.0,1.1798705]
[1757525539471,0.17631145,113500.0,113490.0,1.00364352]
[1757525539858,0.17631145,113500.0,113490.0,1.1798705]
[1757525540058,0.17631145,113500.0,113490.0,1.09226698]
[1757525541713,0.0001,113500.0,113490.0,1.09226698]
[1757525542574,0.0001,113500.0,113490.0,1.1797905]
[1757525542784,0.0001,113500.0,113490.0,1.2032605]
[1757525547017,0.0001,113500.0,113490.0,1.4032605]
[1757525548394,0.0001,113500.0,113490.0,1.46656508]
[1757525551277,0.0001,113500.0,113490.0,1.46560508]
[1757525553807,0.0001,113500.0,113490.0,1.53139678]
[1757525554027,0.0001,113500.0,113490.0,1.93139678]
[1757525554250,0.0001,113500.0,113490.0,1.88139678]
[1757525554469,0.0001,113500.0,113490.0,1.93139678]
[1757525554750,0.0001,113500.0,113490.0,1.93439678]
[1757525554971,0.0001,113500.0,113490.0,1.93239678]
[1757525555184,0.0001,113500.0,113490.0,1.93439678]
[1757525555407,0.0001,113500.0,113490.0,1.93639678]
[1757525558317,0.0001,113500.0,113490.0,1.88639678]
[1757525558531,0.0001,113500.0,113490.0,1.93639678]
[1757525558981,0.0001,113500.0,113490.0,1.96283191]
[1757525559200,0.0001,113500.0,113490.0,1.91283191]
[1757525559422,0.0001,113500.0,113490.0,1.96283191]
[1757525560587,0.0001,113500.0,113490.0,1.91283191]
[1757525563100,0.0001,113500.0,113490.0,2.01283191]
[1757525563522,1e-08,113500.0,113490.0,2.01283191]
[1757525563772,0.0175,113520.0,113510.0,0.72619592]
[1757525564014,0.0175,113520.0,113510.0,1.03501193]
[1757525564408,0.0176,113520.0,113510.0,1.05812193]
[1757525564912,0.0176,113520.0,113510.0,1.10812193]
[1757525565150,0.0176,113520.0,113510.0,1.04482944]
[1757525565385,0.0176,113520.0,113510.0,1.07426071]
[1757525565621,0.0176,113520.0,113510.0,1.07414071]
[1757525565854,0.0176,113520.0,113510.0,1.07406071]
[1757525566340,0.0176,113520.0,113510.0,1.53729622]
[1757525566798,0.0176,113520.0,113510.0,1.5916007]
[1757525567256,0.0176,113520.0,113510.0,1.65482033]
[1757525567516,0.0176,113520.0,113510.0,2.01071631]
[1757525567736,0.0176,113520.0,113510.0,2.01063631]
[1757525568399,0.0176,113520.0,113510.0,2.00763631]
[1757525568611,0.0175,113520.0,113510.0,2.01063631]
[1757525569088,0.0175,113520.0,113510.0,2.00763631]
[1757525569313,0.0175,113520.0,113510.0,2.01063631]
[1757525569968,0.0175,113520.0,113510.0,2.01263631]
[1757525570396,0.0175,113520.0,113510.0,2.01039631]
[1757525570605,0.0175,113520.0,113510.0,1.85301631]
[1757525570812,0.0175,113520.0,113510.0,2.01245631]
[1757525571021,0.0175,113520.0,113510.0,1.85501631]
[1757525571229,0.0175,113520.0,113510.0,2.01241631]
[1757525573602,0.0001,113530.0,113520.0,0.6161804]
[1757525573812,0.0001,113530.0,113520.0,0.99161127]
[1757525574020,0.0001,113530.0,113520.0,1.01573127]
[1757525574251,0.0001,113530.0,113520.0,1.41573127]
[1757525574466,0.0001,113530.0,113520.0,1.44215741]
[1757525574890,0.0001,113530.0,113520.0,1.28495741]
[1757525575182,0.0001,113530.0,113520.0,1.44207741]
[1757525575413,0.0001,113530.0,113520.0,1.44199741]
[1757525575662,0.0001,113530.0,113520.0,1.28495741]
[1757525575876,0.0001,113530.0,113520.0,1.44199741]
[1757525576321,0.0001,113530.0,113520.0,1.39199741]
[1757525576543,0.0001,113530.0,113520.0,1.44299741]
[1757525578665,0.0001,113530.0,113520.0,1.44279741]
[1757525578870,0.0001,113530.0,113520.0,1.44271741]
[1757525579090,0.0001,113530.0,113520.0,1.28595741]
[1757525579312,0.0001,113530.0,113520.0,1.43595741]
[1757525579529,0.0001,113530.0,113520.0,1.59267741]
[1757525579753,0.0001,113530.0,113520.0,1.29873006]
[1757525579972,0.0001,113530.0,113520.0,1.02898392]
[1757525580414,0.0001,113530.0,113520.0,1.42898392]
[1757525580641,0.17626489,113530.0,113520.0,0.87130392]
[1757525580857,0.18154489,113530.0,113520.0,1.02806392]